[Event "Late-Titled-Tuesday-Blitz-July-09-2024"]
[Site "Chess.com"]
[Date "2024.07.09"]
[Round "6"]
[White "Bilan_Danila"]
[Black "artin10862"]
[Result "1/2-1/2"]
[WhiteElo "2599"]
[BlackElo "2930"]
[TimeControl "180+1"]
[EndTime "15:06:41 PDT"]
[Termination "Game drawn - insufficient material"]

1. d4 {[%clk 0:03:00.9]} 1... e6 {[%clk 0:02:54.2]} 2. Nf3 {[%clk 0:03:00.6]}
2... Nf6 {[%clk 0:02:53.1]} 3. g3 {[%clk 0:02:58.3]} 3... g6 {[%clk 0:02:34.4]}
4. Bg2 {[%clk 0:02:58.2]} 4... Bg7 {[%clk 0:02:34.8]} 5. O-O {[%clk 0:02:59.1]}
5... O-O {[%clk 0:02:35.1]} 6. c4 {[%clk 0:02:59.6]} 6... b6 {[%clk 0:02:34.1]}
7. Nc3 {[%clk 0:02:56.2]} 7... Bb7 {[%clk 0:02:33.9]} 8. Bg5 {[%clk 0:02:55.7]}
8... h6 {[%clk 0:02:29.9]} 9. Bf4 {[%clk 0:02:52.1]} 9... d6 {[%clk 0:02:28]}
10. Qd2 {[%clk 0:02:47.4]} 10... Kh7 {[%clk 0:02:21.8]} 11. Ng5+ {[%clk
0:02:31.3]} 11... hxg5 {[%clk 0:02:18.7]} 12. Bxb7 {[%clk 0:02:32]} 12... gxf4
{[%clk 0:02:18.7]} 13. Bxa8 {[%clk 0:02:32.2]} 13... fxg3 {[%clk 0:02:11.7]} 14.
hxg3 {[%clk 0:02:29.9]} 14... c6 {[%clk 0:02:10.8]} 15. d5 {[%clk 0:02:23]}
15... cxd5 {[%clk 0:01:57.9]} 16. cxd5 {[%clk 0:02:23.9]} 16... e5 {[%clk
0:01:58.6]} 17. Kg2 {[%clk 0:02:17.5]} 17... e4 {[%clk 0:01:53.2]} 18. Qf4
{[%clk 0:02:05.2]} 18... Re8 {[%clk 0:01:52.2]} 19. Bc6 {[%clk 0:02:02.3]} 19...
Re5 {[%clk 0:01:51.4]} 20. Rh1+ {[%clk 0:01:52.2]} 20... Kg8 {[%clk 0:01:51.2]}
21. f3 {[%clk 0:01:03.2]} 21... Nh5 {[%clk 0:01:33.2]} 22. Qd2 {[%clk
0:00:44.8]} 22... e3 {[%clk 0:01:32.3]} 23. Qd4 {[%clk 0:00:20.5]} 23... Rg5
{[%clk 0:01:17.3]} 24. Qxe3 {[%clk 0:00:17.7]} 24... Nxg3 {[%clk 0:01:13.1]} 25.
Qe8+ {[%clk 0:00:11.5]} 25... Qxe8 {[%clk 0:01:12.8]} 26. Bxe8 {[%clk
0:00:12.4]} 26... Bxc3 {[%clk 0:01:10.6]} 27. bxc3 {[%clk 0:00:12.3]} 27...
Nxh1+ {[%clk 0:01:08.8]} 28. Kxh1 {[%clk 0:00:12.3]} 28... Rxd5 {[%clk
0:01:05.9]} 29. Kg2 {[%clk 0:00:09.9]} 29... Re5 {[%clk 0:01:05.7]} 30. Ba4
{[%clk 0:00:07.3]} 30... Rxe2+ {[%clk 0:01:06.2]} 31. Kg3 {[%clk 0:00:08]} 31...
Re6 {[%clk 0:01:05.3]} 32. Bb3 {[%clk 0:00:07.7]} 32... Rf6 {[%clk 0:01:05.3]}
33. Re1 {[%clk 0:00:06.6]} 33... Kf8 {[%clk 0:01:05.8]} 34. Rh1 {[%clk
0:00:06.3]} 34... Kg7 {[%clk 0:01:06.2]} 35. Re1 {[%clk 0:00:06.3]} 35... Nc6
{[%clk 0:01:06.8]} 36. Re8 {[%clk 0:00:05.9]} 36... Na5 {[%clk 0:01:02.9]} 37.
Bd5 {[%clk 0:00:04.4]} 37... Rf5 {[%clk 0:01:03.1]} 38. c4 {[%clk 0:00:04.7]}
38... Re5 {[%clk 0:00:55.9]} 39. Ra8 {[%clk 0:00:04]} 39... b5 {[%clk
0:00:55.7]} 40. Rxa7 {[%clk 0:00:03.4]} 40... Nxc4 {[%clk 0:00:55.8]} 41. Rxf7+
{[%clk 0:00:02.6]} 41... Kh6 {[%clk 0:00:56.4]} 42. Bxc4 {[%clk 0:00:03.2]}
42... bxc4 {[%clk 0:00:56.5]} 43. Rc7 {[%clk 0:00:03.9]} 43... d5 {[%clk
0:00:47.5]} 44. a4 {[%clk 0:00:03.6]} 44... Re3 {[%clk 0:00:22.9]} 45. Rc5
{[%clk 0:00:02]} 45... Ra3 {[%clk 0:00:22.5]} 46. Rxd5 {[%clk 0:00:02.4]} 46...
Rxa4 {[%clk 0:00:22.5]} 47. Rc5 {[%clk 0:00:03.3]} 47... Kg7 {[%clk 0:00:20.7]}
48. Kf4 {[%clk 0:00:03.7]} 48... Kf6 {[%clk 0:00:20.4]} 49. Rc6+ {[%clk
0:00:04.4]} 49... Kf7 {[%clk 0:00:20.7]} 50. Kg5 {[%clk 0:00:04.3]} 50... Ra5+
{[%clk 0:00:20.3]} 51. Kg4 {[%clk 0:00:04.8]} 51... Ra4 {[%clk 0:00:20.4]} 52.
Kg5 {[%clk 0:00:04.9]} 52... Rb4 {[%clk 0:00:20.5]} 53. Rc7+ {[%clk 0:00:04.1]}
53... Ke6 {[%clk 0:00:20.9]} 54. Kxg6 {[%clk 0:00:04.7]} 54... Kd5 {[%clk
0:00:21.4]} 55. f4 {[%clk 0:00:05.1]} 55... Rb6+ {[%clk 0:00:19.5]} 56. Kg7
{[%clk 0:00:04.2]} 56... Rb1 {[%clk 0:00:12.6]} 57. f5 {[%clk 0:00:03.5]} 57...
Rg1+ {[%clk 0:00:13]} 58. Kf7 {[%clk 0:00:03.4]} 58... Kd4 {[%clk 0:00:12.5]}
59. f6 {[%clk 0:00:03.9]} 59... c3 {[%clk 0:00:13.2]} 60. Kf8 {[%clk 0:00:04]}
60... Rg5 {[%clk 0:00:12.2]} 61. f7 {[%clk 0:00:02.1]} 61... Kd3 {[%clk
0:00:11]} 62. Rd7+ {[%clk 0:00:02.4]} 62... Ke2 {[%clk 0:00:10.1]} 63. Ke8
{[%clk 0:00:02.4]} 63... Re5+ {[%clk 0:00:09.1]} 64. Re7 {[%clk 0:00:02.8]}
64... Rxe7+ {[%clk 0:00:09.6]} 65. Kxe7 {[%clk 0:00:03.7]} 65... c2 {[%clk
0:00:10.5]} 66. f8=Q {[%clk 0:00:04.5]} 66... c1=Q {[%clk 0:00:11.4]} 67. Qf6
{[%clk 0:00:05.1]} 67... Qc5+ {[%clk 0:00:11.1]} 68. Qd6 {[%clk 0:00:05.6]}
68... Qa7+ {[%clk 0:00:11.7]} 69. Qd7 {[%clk 0:00:06.1]} 69... Qa3+ {[%clk
0:00:11.7]} 70. Qd6 {[%clk 0:00:06.6]} 70... Qf3 {[%clk 0:00:10.4]} 71. Qe6+
{[%clk 0:00:06.6]} 71... Kf1 {[%clk 0:00:10.3]} 72. Qf6 {[%clk 0:00:06.7]} 72...
Qf2 {[%clk 0:00:11.2]} 73. Qxf2+ {[%clk 0:00:06.4]} 73... Kxf2 {[%clk
0:00:12.1]} 1/2-1/2

[Event "Late-Titled-Tuesday-Blitz-July-09-2024"]
[Site "Chess.com"]
[Date "2024.07.09"]
[Round "6"]
[White "swayamsm"]
[Black "MarcoRiehle"]
[Result "0-1"]
[WhiteElo "2632"]
[BlackElo "2863"]
[TimeControl "180+1"]
[EndTime "15:06:42 PDT"]
[Termination "MarcoRiehle won by resignation"]

1. d4 {[%clk 0:03:00.9]} 1... d5 {[%clk 0:02:54.1]} 2. c4 {[%clk 0:03:00.4]}
2... e6 {[%clk 0:02:54.4]} 3. Nc3 {[%clk 0:02:59.7]} 3... c5 {[%clk 0:02:54.2]}
4. cxd5 {[%clk 0:02:58.3]} 4... cxd4 {[%clk 0:02:53.9]} 5. Qa4+ {[%clk
0:02:56.1]} 5... Bd7 {[%clk 0:02:53.6]} 6. Qxd4 {[%clk 0:02:56.5]} 6... exd5
{[%clk 0:02:49.1]} 7. Nxd5 {[%clk 0:02:41.3]} 7... Nc6 {[%clk 0:02:46.9]} 8.
Qe4+ {[%clk 0:02:39.8]} 8... Nge7 {[%clk 0:02:46.7]} 9. Nxe7 {[%clk 0:02:34.8]}
9... Bxe7 {[%clk 0:02:46.6]} 10. Nf3 {[%clk 0:02:31.2]} 10... O-O {[%clk
0:02:46.1]} 11. e3 {[%clk 0:02:26.2]} 11... Re8 {[%clk 0:02:45.9]} 12. Bd2
{[%clk 0:02:22.6]} 12... Bb4 {[%clk 0:02:44.2]} 13. Qc2 {[%clk 0:02:17.4]} 13...
Rc8 {[%clk 0:02:38.6]} 14. Bc4 {[%clk 0:02:09.4]} 14... Bxd2+ {[%clk 0:02:32.1]}
15. Qxd2 {[%clk 0:02:10.3]} 15... Bg4 {[%clk 0:02:23.1]} 16. Qxd8 {[%clk
0:02:06.3]} 16... Rexd8 {[%clk 0:02:24]} 17. Be2 {[%clk 0:01:51.8]} 17... Nb4
{[%clk 0:02:23.4]} 18. O-O {[%clk 0:01:49.2]} 18... Rc2 {[%clk 0:02:23.1]} 19.
Rfd1 {[%clk 0:01:30.1]} 19... Rdc8 {[%clk 0:02:23]} 20. Nd4 {[%clk 0:01:20.1]}
20... Rxe2 {[%clk 0:02:14.6]} 21. Nxe2 {[%clk 0:01:16.9]} 21... Bxe2 {[%clk
0:02:15.5]} 22. Rd4 {[%clk 0:01:10.3]} 22... Nc6 {[%clk 0:02:13.1]} 23. Rd7
{[%clk 0:01:10]} 23... Ba6 {[%clk 0:02:13.6]} 24. Rad1 {[%clk 0:01:08.9]} 24...
g6 {[%clk 0:02:12.8]} 25. f3 {[%clk 0:01:06.4]} 25... Kg7 {[%clk 0:02:12.6]} 26.
Kf2 {[%clk 0:01:06.9]} 26... Ne5 {[%clk 0:02:12.2]} 27. R7d2 {[%clk 0:01:05]}
27... h5 {[%clk 0:02:09.1]} 28. b3 {[%clk 0:01:03.3]} 28... h4 {[%clk
0:02:05.6]} 29. h3 {[%clk 0:00:52.8]} 29... Rc3 {[%clk 0:01:59]} 30. e4 {[%clk
0:00:41.2]} 30... Nd3+ {[%clk 0:01:54.6]} 31. Kg1 {[%clk 0:00:34.1]} 31... g5
{[%clk 0:01:50.4]} 32. Rb1 {[%clk 0:00:26.3]} 32... Kf6 {[%clk 0:01:49.1]} 33.
Kh2 {[%clk 0:00:22.5]} 33... Ke5 {[%clk 0:01:45.7]} 34. g3 {[%clk 0:00:21.7]}
34... Kf6 {[%clk 0:01:43.3]} 35. Rg1 {[%clk 0:00:18.7]} 35... Ne5 {[%clk
0:01:43.3]} 36. Rf2 {[%clk 0:00:15.3]} 36... Rxf3 {[%clk 0:01:35.6]} 37. Kg2
{[%clk 0:00:11.5]} 37... Rxf2+ {[%clk 0:01:30.5]} 38. Kxf2 {[%clk 0:00:12.4]}
38... hxg3+ {[%clk 0:01:31.4]} 39. Kxg3 {[%clk 0:00:12.8]} 39... Ke6 {[%clk
0:01:25.7]} 40. Rc1 {[%clk 0:00:13]} 40... Kd6 {[%clk 0:01:25.3]} 41. Rc8 {[%clk
0:00:13.3]} 41... Bb5 {[%clk 0:01:23.2]} 42. Rg8 {[%clk 0:00:13.6]} 42... f6
{[%clk 0:01:22.9]} 43. Rf8 {[%clk 0:00:13.3]} 43... Ke7 {[%clk 0:01:20.5]} 44.
Rh8 {[%clk 0:00:11]} 44... Bc6 {[%clk 0:01:20.1]} 45. h4 {[%clk 0:00:11.7]}
45... gxh4+ {[%clk 0:01:19.8]} 46. Rxh4 {[%clk 0:00:11.6]} 46... Ke6 {[%clk
0:01:19.6]} 47. Kf2 {[%clk 0:00:08.8]} 47... Ng6 {[%clk 0:01:18.5]} 48. Rg4
{[%clk 0:00:08.8]} 48... Ne5 {[%clk 0:01:15.2]} 49. Rh4 {[%clk 0:00:09.3]} 49...
Nd3+ {[%clk 0:01:14.8]} 50. Ke3 {[%clk 0:00:09.4]} 50... Nc5 {[%clk 0:01:15.4]}
51. b4 {[%clk 0:00:05.9]} 51... Nxe4 {[%clk 0:01:14.4]} 52. b5 {[%clk
0:00:06.5]} 52... Bd5 {[%clk 0:01:14.7]} 53. a4 {[%clk 0:00:06.5]} 53... Nd6
{[%clk 0:01:12.6]} 54. Rh7 {[%clk 0:00:04.9]} 54... Nf5+ {[%clk 0:01:11.2]} 55.
Kd3 {[%clk 0:00:04.8]} 55... Ne7 {[%clk 0:01:07.4]} 56. a5 {[%clk 0:00:04.6]}
56... b6 {[%clk 0:01:07.3]} 57. a6 {[%clk 0:00:04.2]} 57... Bg2 {[%clk
0:01:06.5]} 58. Kd4 {[%clk 0:00:04.5]} 58... Bf1 {[%clk 0:01:06.3]} 59. Rh5
{[%clk 0:00:03.4]} 59... Nf5+ {[%clk 0:01:06.3]} 60. Kc3 {[%clk 0:00:02.7]}
60... Bxb5 {[%clk 0:01:06.2]} 61. Rh7 {[%clk 0:00:03]} 61... Ne7 {[%clk
0:01:05.7]} 62. Kb4 {[%clk 0:00:02.8]} 62... Bxa6 {[%clk 0:01:06]} 63. Rh1
{[%clk 0:00:03.7]} 63... Bb7 {[%clk 0:01:04.6]} 64. Re1+ {[%clk 0:00:04.6]}
64... Kd6 {[%clk 0:01:04.6]} 65. Ra1 {[%clk 0:00:05.4]} 65... a6 {[%clk
0:01:03.2]} 66. Kc4 {[%clk 0:00:05.8]} 66... b5+ {[%clk 0:01:02.5]} 67. Kd4
{[%clk 0:00:06.7]} 67... Nc6+ {[%clk 0:01:02.3]} 68. Ke4 {[%clk 0:00:07.6]}
68... Ke6 {[%clk 0:01:02.2]} 69. Kf4 {[%clk 0:00:07.7]} 69... a5 {[%clk
0:01:00.7]} 70. Re1+ {[%clk 0:00:07.9]} 70... Ne5 {[%clk 0:01:01.2]} 71. Rc1
{[%clk 0:00:08.6]} 71... a4 {[%clk 0:00:59.3]} 72. Rc7 {[%clk 0:00:08.2]} 72...
Bc6 {[%clk 0:00:58.7]} 73. Ra7 {[%clk 0:00:08.8]} 73... b4 {[%clk 0:00:58.7]}
74. Ra6 {[%clk 0:00:09.5]} 74... a3 {[%clk 0:00:57.5]} 75. Ke3 {[%clk
0:00:10.2]} 75... Kd5 {[%clk 0:00:56.9]} 76. Kd2 {[%clk 0:00:10.1]} 76... f5
{[%clk 0:00:55.7]} 77. Kc2 {[%clk 0:00:10.1]} 77... Kc5 {[%clk 0:00:55.9]} 78.
Kb3 {[%clk 0:00:10.5]} 78... Kb5 {[%clk 0:00:55.3]} 79. Ra8 {[%clk 0:00:08.2]}
79... Bd5+ {[%clk 0:00:55.6]} 80. Kc2 {[%clk 0:00:08.1]} 80... f4 {[%clk
0:00:53.2]} 81. Rb8+ {[%clk 0:00:09]} 81... Kc5 {[%clk 0:00:53.5]} 82. Rc8+
{[%clk 0:00:08.8]} 82... Kd4 {[%clk 0:00:53.4]} 83. Rf8 {[%clk 0:00:09.7]} 83...
f3 {[%clk 0:00:53]} 84. Rf4+ {[%clk 0:00:09.5]} 84... Kc5 {[%clk 0:00:52.6]} 85.
Kc1 {[%clk 0:00:07.2]} 85... Nd3+ {[%clk 0:00:52.5]} 86. Kd1 {[%clk 0:00:07.8]}
86... Nxf4 {[%clk 0:00:53.2]} 0-1

[Event "Late-Titled-Tuesday-Blitz-July-09-2024"]
[Site "Chess.com"]
[Date "2024.07.09"]
[Round "6"]
[White "DanielDardha2005"]
[Black "ChessSwole"]
[Result "0-1"]
[WhiteElo "2896"]
[BlackElo "2722"]
[TimeControl "180+1"]
[EndTime "15:06:48 PDT"]
[Termination "ChessSwole won by resignation"]

1. d4 {[%clk 0:03:00.9]} 1... e6 {[%clk 0:02:58.1]} 2. Nf3 {[%clk 0:03:00.5]}
2... c5 {[%clk 0:02:57.6]} 3. e3 {[%clk 0:02:52.5]} 3... Nf6 {[%clk 0:02:57]} 4.
c4 {[%clk 0:02:51.6]} 4... cxd4 {[%clk 0:02:52.1]} 5. exd4 {[%clk 0:02:51]} 5...
d5 {[%clk 0:02:51.4]} 6. Nc3 {[%clk 0:02:51.3]} 6... Be7 {[%clk 0:02:48.1]} 7.
cxd5 {[%clk 0:02:47.5]} 7... Nxd5 {[%clk 0:02:40.7]} 8. Bd3 {[%clk 0:02:42.4]}
8... O-O {[%clk 0:02:40.5]} 9. O-O {[%clk 0:02:41.9]} 9... Nc6 {[%clk
0:02:33.4]} 10. a3 {[%clk 0:02:40.5]} 10... Nxc3 {[%clk 0:01:45]} 11. bxc3
{[%clk 0:02:38.5]} 11... Qa5 {[%clk 0:01:45.1]} 12. Bd2 {[%clk 0:02:22.5]} 12...
Bd7 {[%clk 0:01:39.6]} 13. h4 {[%clk 0:02:14.4]} 13... Rfd8 {[%clk 0:01:28]} 14.
Ng5 {[%clk 0:02:12.4]} 14... h6 {[%clk 0:01:10]} 15. Qh5 {[%clk 0:01:57.6]}
15... Be8 {[%clk 0:01:10.3]} 16. Bh7+ {[%clk 0:01:45.3]} 16... Kf8 {[%clk
0:00:45.8]} 17. Rfe1 {[%clk 0:01:17]} 17... hxg5 {[%clk 0:00:36.6]} 18. Bd3
{[%clk 0:01:04.2]} 18... Bf6 {[%clk 0:00:19.3]} 19. Rab1 {[%clk 0:00:33.6]}
19... Nxd4 {[%clk 0:00:19.5]} 20. hxg5 {[%clk 0:00:28.9]} 20... Be5 {[%clk
0:00:07.5]} 21. Rxb7 {[%clk 0:00:19.5]} 21... g6 {[%clk 0:00:05.7]} 22. Qd1
{[%clk 0:00:10.5]} 22... Nf5 {[%clk 0:00:03.7]} 23. Bxf5 {[%clk 0:00:10.3]}
23... exf5 {[%clk 0:00:04.5]} 24. Qe2 {[%clk 0:00:07.7]} 24... Bc6 {[%clk
0:00:03.4]} 25. Rb4 {[%clk 0:00:05.3]} 25... Qd5 {[%clk 0:00:03.3]} 26. f3
{[%clk 0:00:05.4]} 26... Bg7 {[%clk 0:00:01.7]} 27. Bf4 {[%clk 0:00:05]} 27...
Kg8 {[%clk 0:00:02.3]} 28. Rc1 {[%clk 0:00:02.3]} 28... Re8 {[%clk 0:00:02.6]}
29. Qf2 {[%clk 0:00:02]} 29... Rac8 {[%clk 0:00:02.5]} 30. Be3 {[%clk
0:00:02.1]} 30... Qd3 {[%clk 0:00:02.7]} 31. Bd4 {[%clk 0:00:02.1]} 31... Bxd4
{[%clk 0:00:02.7]} 32. Rxd4 {[%clk 0:00:02]} 32... Qa6 {[%clk 0:00:03.3]} 33.
Qh4 {[%clk 0:00:01.1]} 33... Qb7 {[%clk 0:00:03.3]} 34. Kf2 {[%clk 0:00:01.5]}
34... Qe7 {[%clk 0:00:02.6]} 35. Rh1 {[%clk 0:00:01]} 35... Qe3+ {[%clk
0:00:03]} 36. Kg3 {[%clk 0:00:01.9]} 36... Qe5+ {[%clk 0:00:02.3]} 37. f4 {[%clk
0:00:02.1]} 37... Qg7 {[%clk 0:00:02.6]} 38. Rd3 {[%clk 0:00:01.9]} 38... Re4
{[%clk 0:00:02.9]} 39. Rdd1 {[%clk 0:00:01.7]} 39... Rce8 {[%clk 0:00:03.4]} 40.
Kh2 {[%clk 0:00:02.4]} 40... Re2 {[%clk 0:00:03.5]} 41. Rdg1 {[%clk 0:00:02.4]}
41... Qxc3 {[%clk 0:00:03.9]} 42. Qh3 {[%clk 0:00:01.7]} 42... Qxh3+ {[%clk
0:00:03.9]} 43. Kxh3 {[%clk 0:00:02.3]} 43... R8e3+ {[%clk 0:00:04.5]} 44. Kh2
{[%clk 0:00:02.9]} 44... Kg7 {[%clk 0:00:03.8]} 45. a4 {[%clk 0:00:01.9]} 45...
Re4 {[%clk 0:00:04.2]} 46. Rf1 {[%clk 0:00:02]} 46... Rc4 {[%clk 0:00:03.8]} 47.
Rhg1 {[%clk 0:00:02.6]} 47... Rcc2 {[%clk 0:00:04.1]} 48. Rc1 {[%clk 0:00:01.9]}
48... Rxg2+ {[%clk 0:00:04.4]} 49. Rxg2 {[%clk 0:00:01.4]} 49... Rxc1 {[%clk
0:00:04.5]} 50. Rd2 {[%clk 0:00:01.4]} 50... Rc4 {[%clk 0:00:04.8]} 51. Rd6
{[%clk 0:00:01.1]} 51... Be4 {[%clk 0:00:04.6]} 52. a5 {[%clk 0:00:01.6]} 52...
Ra4 {[%clk 0:00:04.8]} 53. a6 {[%clk 0:00:02.2]} 53... Bf3 {[%clk 0:00:04.7]}
54. Kg3 {[%clk 0:00:01.8]} 54... Be2 {[%clk 0:00:05.2]} 55. Rc6 {[%clk
0:00:02.1]} 55... Bxa6 {[%clk 0:00:05.1]} 56. Rc7 {[%clk 0:00:03]} 56... Ra3+
{[%clk 0:00:04.8]} 57. Kh4 {[%clk 0:00:03.4]} 57... Ra4 {[%clk 0:00:03.6]} 58.
Kg3 {[%clk 0:00:02.1]} 58... Bb5 {[%clk 0:00:03.6]} 59. Rb7 {[%clk 0:00:02.2]}
59... Bc6 {[%clk 0:00:03.5]} 60. Rc7 {[%clk 0:00:02.5]} 60... Rc4 {[%clk
0:00:04.1]} 61. Re7 {[%clk 0:00:02.3]} 61... a5 {[%clk 0:00:04]} 62. Re3 {[%clk
0:00:02.8]} 62... a4 {[%clk 0:00:04.3]} 63. Ra3 {[%clk 0:00:02.3]} 63... Rb4
{[%clk 0:00:04.9]} 64. Rc3 {[%clk 0:00:02.1]} 64... Rb3 {[%clk 0:00:04.8]} 65.
Kh4 {[%clk 0:00:03]} 65... Bg2 {[%clk 0:00:02.8]} 66. Rd3 {[%clk 0:00:01.9]}
66... Rb4 {[%clk 0:00:01.2]} 67. Rh3 {[%clk 0:00:01.4]} 67... Be4 {[%clk
0:00:01.7]} 68. Re3 {[%clk 0:00:01.2]} 68... Rb3 {[%clk 0:00:02.4]} 69. Kg3
{[%clk 0:00:01.7]} 69... Rxe3+ {[%clk 0:00:02.3]} 70. Kh4 {[%clk 0:00:02.6]}
70... Re2 {[%clk 0:00:02.8]} 71. Kg3 {[%clk 0:00:02.8]} 71... Rb2 {[%clk
0:00:03.5]} 72. Kh4 {[%clk 0:00:03.6]} 72... a3 {[%clk 0:00:04.4]} 73. Kg3
{[%clk 0:00:04.1]} 73... a2 {[%clk 0:00:04.9]} 74. Kh4 {[%clk 0:00:04.8]} 74...
a1=Q {[%clk 0:00:05.8]} 75. Kg3 {[%clk 0:00:05.7]} 75... Qe1+ {[%clk 0:00:06.3]}
76. Kh3 {[%clk 0:00:05.2]} 76... Qh1+ {[%clk 0:00:06.7]} 0-1

[Event "Late-Titled-Tuesday-Blitz-July-09-2024"]
[Site "Chess.com"]
[Date "2024.07.09"]
[Round "6"]
[White "JEHUBNER"]
[Black "SharathRk6"]
[Result "0-1"]
[WhiteElo "2011"]
[BlackElo "2429"]
[TimeControl "180+1"]
[EndTime "15:07:01 PDT"]
[Termination "SharathRk6 won by checkmate"]

1. e4 {[%clk 0:03:00.9]} 1... e5 {[%clk 0:02:58.4]} 2. Nf3 {[%clk 0:02:58]} 2...
Nc6 {[%clk 0:02:58.8]} 3. Bb5 {[%clk 0:02:57.9]} 3... a6 {[%clk 0:02:58.6]} 4.
Ba4 {[%clk 0:02:57.7]} 4... Nf6 {[%clk 0:02:57.7]} 5. O-O {[%clk 0:02:57.9]}
5... b5 {[%clk 0:02:57.7]} 6. Bb3 {[%clk 0:02:57.5]} 6... Bc5 {[%clk 0:02:58.2]}
7. c3 {[%clk 0:02:56.9]} 7... d6 {[%clk 0:02:58.4]} 8. d4 {[%clk 0:02:57.3]}
8... Bb6 {[%clk 0:02:58.9]} 9. Bd5 {[%clk 0:02:54.3]} 9... Nxd5 {[%clk 0:02:58]}
10. exd5 {[%clk 0:02:55.2]} 10... Ne7 {[%clk 0:02:58.2]} 11. dxe5 {[%clk
0:02:55]} 11... dxe5 {[%clk 0:02:58.6]} 12. Nxe5 {[%clk 0:02:50.7]} 12... Qxd5
{[%clk 0:02:58.9]} 13. Qxd5 {[%clk 0:02:41.9]} 13... Nxd5 {[%clk 0:02:59.8]} 14.
Rd1 {[%clk 0:02:11.9]} 14... Bb7 {[%clk 0:02:56.9]} 15. Nd2 {[%clk 0:02:08.6]}
15... O-O {[%clk 0:02:56.2]} 16. Ndf3 {[%clk 0:02:07]} 16... Rfe8 {[%clk
0:02:49.2]} 17. Nd7 {[%clk 0:02:02.4]} 17... Ba7 {[%clk 0:02:41.9]} 18. Nde5
{[%clk 0:01:51]} 18... f6 {[%clk 0:02:34.3]} 19. Ng4 {[%clk 0:01:49.2]} 19...
Nb6 {[%clk 0:02:33.8]} 20. Be3 {[%clk 0:01:47.7]} 20... Bxf3 {[%clk 0:02:23.8]}
21. gxf3 {[%clk 0:01:48.6]} 21... Nc4 {[%clk 0:02:23.8]} 22. Bxa7 {[%clk
0:01:41.9]} 22... Rxa7 {[%clk 0:02:23.9]} 23. b3 {[%clk 0:01:42.2]} 23... Nd6
{[%clk 0:02:22]} 24. Rd2 {[%clk 0:01:40.5]} 24... Raa8 {[%clk 0:02:17.1]} 25.
Rad1 {[%clk 0:01:39.1]} 25... h5 {[%clk 0:02:16.6]} 26. Ne3 {[%clk 0:01:38.6]}
26... Re5 {[%clk 0:02:09.1]} 27. Nd5 {[%clk 0:01:35.4]} 27... Ne8 {[%clk
0:02:03]} 28. f4 {[%clk 0:01:32.9]} 28... Re6 {[%clk 0:01:59.9]} 29. f5 {[%clk
0:01:27.8]} 29... Re5 {[%clk 0:01:58.3]} 30. f4 {[%clk 0:01:27.3]} 30... Re4
{[%clk 0:01:55.5]} 31. Rd4 {[%clk 0:01:21.3]} 31... Rxd4 {[%clk 0:01:45.1]} 32.
Rxd4 {[%clk 0:01:22.2]} 32... Kf8 {[%clk 0:01:43]} 33. c4 {[%clk 0:01:17.8]}
33... c6 {[%clk 0:01:37]} 34. Nb6 {[%clk 0:01:15.8]} 34... Ra7 {[%clk
0:01:36.8]} 35. cxb5 {[%clk 0:01:14.9]} 35... axb5 {[%clk 0:01:36.1]} 36. a4
{[%clk 0:01:12.3]} 36... bxa4 {[%clk 0:01:22.2]} 37. Nxa4 {[%clk 0:01:11.4]}
37... Rb7 {[%clk 0:01:20.1]} 38. Nc5 {[%clk 0:01:11.7]} 38... Rb5 {[%clk
0:01:19.9]} 39. b4 {[%clk 0:01:11.4]} 39... Kf7 {[%clk 0:01:06.5]} 40. Rd7+
{[%clk 0:01:08.4]} 40... Kf8 {[%clk 0:01:04.6]} 41. Ne6+ {[%clk 0:00:59.1]}
41... Kg8 {[%clk 0:01:01.5]} 42. Rd8 {[%clk 0:00:57.8]} 42... Rxf5 {[%clk
0:00:52.2]} 43. Rxe8+ {[%clk 0:00:57.6]} 43... Kf7 {[%clk 0:00:52.6]} 44. Nc7
{[%clk 0:00:56.4]} 44... Rxf4 {[%clk 0:00:51.3]} 45. Rb8 {[%clk 0:00:55.3]}
45... g5 {[%clk 0:00:50.6]} 46. Na6 {[%clk 0:00:53.4]} 46... h4 {[%clk
0:00:50.7]} 47. Nc5 {[%clk 0:00:53.5]} 47... g4 {[%clk 0:00:49.6]} 48. Nd3
{[%clk 0:00:53.7]} 48... Rd4 {[%clk 0:00:48.2]} 49. Nf2 {[%clk 0:00:52.8]} 49...
f5 {[%clk 0:00:48.5]} 50. Rc8 {[%clk 0:00:51.2]} 50... Rxb4 {[%clk 0:00:47.7]}
51. Rxc6 {[%clk 0:00:51.4]} 51... h3 {[%clk 0:00:45.1]} 52. Nd3 {[%clk
0:00:48.8]} 52... Rb3 {[%clk 0:00:41.2]} 53. Ne5+ {[%clk 0:00:46.6]} 53... Kg7
{[%clk 0:00:41.6]} 54. Rc5 {[%clk 0:00:27.1]} 54... Kf6 {[%clk 0:00:37.2]} 55.
Nd7+ {[%clk 0:00:26.9]} 55... Kg5 {[%clk 0:00:37.1]} 56. Nf8 {[%clk 0:00:26.4]}
56... Rb1+ {[%clk 0:00:34.6]} 57. Kf2 {[%clk 0:00:26.3]} 57... Rh1 {[%clk
0:00:31.7]} 58. Kg3 {[%clk 0:00:18.7]} 58... Rg1+ {[%clk 0:00:31.4]} 59. Kf2
{[%clk 0:00:19.1]} 59... Rg2+ {[%clk 0:00:31.8]} 60. Kf1 {[%clk 0:00:19.7]}
60... Rxh2 {[%clk 0:00:32.3]} 61. Ne6+ {[%clk 0:00:19.2]} 61... Kf6 {[%clk
0:00:32.7]} 62. Nd4 {[%clk 0:00:17.7]} 62... g3 {[%clk 0:00:29.6]} 63. Rxf5+
{[%clk 0:00:17.8]} 63... Kg6 {[%clk 0:00:29]} 64. Rf3 {[%clk 0:00:15.3]} 64...
g2+ {[%clk 0:00:26.5]} 65. Kf2 {[%clk 0:00:15.6]} 65... Rh1 {[%clk 0:00:26.6]}
66. Rg3+ {[%clk 0:00:16.3]} 66... Kf6 {[%clk 0:00:24.9]} 67. Nf3 {[%clk
0:00:16.9]} 67... Rf1+ {[%clk 0:00:24.2]} 68. Ke2 {[%clk 0:00:15.9]} 68... Kf5
{[%clk 0:00:20.5]} 69. Rxh3 {[%clk 0:00:15.2]} 69... Kg4 {[%clk 0:00:14]} 70.
Nh2+ {[%clk 0:00:13]} 70... Kxh3 {[%clk 0:00:13.6]} 71. Nxf1 {[%clk 0:00:13.9]}
71... g1=Q {[%clk 0:00:13.9]} 72. Ne3 {[%clk 0:00:13.5]} 72... Qg3 {[%clk
0:00:14]} 73. Kd3 {[%clk 0:00:14.4]} 73... Qf3 {[%clk 0:00:14.1]} 74. Kd4 {[%clk
0:00:15.3]} 74... Kg3 {[%clk 0:00:14.1]} 75. Nd5 {[%clk 0:00:16.2]} 75... Qe2
{[%clk 0:00:13.4]} 76. Nc3 {[%clk 0:00:14.6]} 76... Qe6 {[%clk 0:00:12.3]} 77.
Ne4+ {[%clk 0:00:14.9]} 77... Kf4 {[%clk 0:00:12.4]} 78. Nd2 {[%clk 0:00:14.1]}
78... Qd6+ {[%clk 0:00:12.4]} 79. Kc3 {[%clk 0:00:14.2]} 79... Qd5 {[%clk
0:00:12.4]} 80. Nc4 {[%clk 0:00:15.1]} 80... Ke4 {[%clk 0:00:12.1]} 81. Nd2+
{[%clk 0:00:15.8]} 81... Ke3 {[%clk 0:00:12.6]} 82. Nc4+ {[%clk 0:00:16.1]}
82... Ke2 {[%clk 0:00:13.3]} 83. Nb2 {[%clk 0:00:13.5]} 83... Qc6+ {[%clk
0:00:13.8]} 84. Nc4 {[%clk 0:00:14.1]} 84... Qc5 {[%clk 0:00:13.4]} 85. Kb3
{[%clk 0:00:12.5]} 85... Kd3 {[%clk 0:00:13.8]} 86. Nb2+ {[%clk 0:00:12.4]}
86... Kd4 {[%clk 0:00:14.2]} 87. Na4 {[%clk 0:00:11.8]} 87... Qb5+ {[%clk
0:00:14]} 88. Ka3 {[%clk 0:00:11.5]} 88... Kc4 {[%clk 0:00:14]} 89. Nb2+ {[%clk
0:00:11.5]} 89... Kc3 {[%clk 0:00:14.6]} 90. Na4+ {[%clk 0:00:11.7]} 90... Kc2
{[%clk 0:00:15.1]} 91. Nb6 {[%clk 0:00:01.4]} 91... Qb3# {[%clk 0:00:13.7]} 0-1